fUST/lending_fUST_20250812
["ID","MTS","AMOUNT","RATE_DAILY","PERIOD"]
[378723419,1754991050502,-597.04,0.00019813,2]
[378723420,1754991050511,-658.92,0.00019813,2]
[378723421,1754991050520,-460.0,0.00019813,2]
[378723422,1754991050529,-808.0,0.00019813,2]
[378723423,1754991050540,-1714.91,0.00019813,2]
[378723424,1754991050549,-919.35,0.00019813,2]
[378723425,1754991050559,-1201.48,0.00019813,2]
[378723426,1754991050568,-570.3,0.00019813,2]
[378723427,1754991050578,-460.0,0.00019813,2]
[378723428,1754991050587,-3031.66,0.00019813,2]
[378723429,1754991050597,-673.01,0.00019813,2]
[378723430,1754991050606,-580.87,0.00019813,2]
[378723431,1754991050616,-460.0,0.00019813,2]
[378723432,1754991050625,-635.1,0.00019813,2]
[378723433,1754991050635,-460.0,0.00019813,2]
[378723434,1754991050644,-168.0,0.00019824,2]
[378723435,1754991050654,-454.27289081,0.00019845,4]
[378723436,1754991050663,-168.0,0.00019846,2]
[378723437,1754991050672,-746.675104,0.00019863,2]
[378723438,1754991050682,-151.0,0.00019884,2]
[378723439,1754991050691,-168.0,0.00019895,2]
[378723440,1754991050700,-39268.73059621,0.000199,2]
[378723441,1754991050710,-460.0,0.00019903,2]
[378723442,1754991050719,-510.84802152,0.00019903,2]
[378723443,1754991050727,-927.22,0.00019903,2]
[378723444,1754991050737,-460.0,0.00019903,2]
[378723445,1754991050746,-460.0,0.00019903,2]
[378723446,1754991050755,-460.0,0.00019903,2]
[378723447,1754991050764,-460.0,0.00019903,2]
[378723448,1754991050774,-481.59,0.00019903,2]
[378723449,1754991050783,-205.88477166,0.00019903,2]
[378723450,1754991050791,-460.0,0.00019903,2]
[378723451,1754991050801,-460.0,0.00019903,2]
[378723452,1754991050810,-460.0,0.00019903,2]
[378723453,1754991050819,-460.0,0.00019903,2]
[378723454,1754991050828,-460.0,0.00019903,2]
[378723455,1754991050838,-472.14,0.00019903,2]
[378723456,1754991050847,-460.0,0.00019903,2]
[378723457,1754991050856,-460.0,0.00019903,2]
[378723458,1754991050865,-460.0,0.00019903,2]
[378723459,1754991050874,-460.0,0.00019903,2]
[378723460,1754991050884,-460.0,0.00019903,2]
[378723461,1754991050894,-188.71587405,0.00019903,2]
[378723462,1754991050903,-460.0,0.00019903,2]
[378723463,1754991050912,-460.0,0.00019903,2]
[378723464,1754991050922,-460.0,0.00019903,2]
[378723465,1754991050931,-460.0,0.00019903,2]
[378723466,1754991050940,-167.27288127,0.00019903,2]
[378723467,1754991051091,-292.72711873,0.00019903,2]
[378723468,1754991051101,-150.52483999,0.00019903,2]
[378723469,1754991051111,-389.74799488,0.00019903,2]
[378723470,1754991051124,-448.29200512,0.00019903,2]
[378723471,1754991051134,-409.05960852,0.00019911,2]
[378723472,1754991051234,1082.58119139,0.0001825,2]
[378723473,1754991052432,-0.0332552,0.00019911,2]
[378723474,1754991052444,-50.90713628,0.00019911,2]
[378723475,1754991052454,-460.0,0.00019911,2]
[378723476,1754991052464,-460.0,0.00019911,2]
[378723477,1754991052474,-460.0,0.00019911,2]
[378723478,1754991052484,-409.89760658,0.00019911,2]
[378723479,1754991052494,-460.0,0.00019911,2]
[378723480,1754991052503,-406.65731874,0.00019911,2]
[378723481,1754991052738,-800.0,0.00019629,2]
[378723482,1754991052748,-53.34268126,0.00019911,2]
[378723483,1754991052758,-460.0,0.00019911,2]
[378723484,1754991052767,-705.76,0.00019911,2]
[378723485,1754991052777,-539.2,0.00019911,2]
[378723486,1754991052786,-460.0,0.00019911,2]
[378723487,1754991052796,-460.0,0.00019911,2]
[378723488,1754991052806,-553.78,0.00019911,2]
[378723489,1754991052815,-460.0,0.00019911,2]
[378723490,1754991052825,-460.0,0.00019911,2]
[378723491,1754991052835,-733.71,0.00019911,2]
[378723492,1754991052848,-460.0,0.00019911,2]
[378723493,1754991052858,-646.45,0.00019911,2]
[378723494,1754991052868,-460.0,0.00019911,2]
[378723495,1754991052877,-460.0,0.00019911,2]
[378723496,1754991052887,-460.0,0.00019911,2]
[378723497,1754991052896,-460.0,0.00019911,2]
[378723498,1754991052906,-2187.09,0.00019911,2]
[378723499,1754991052915,-929.85,0.00019911,2]
[378723500,1754991052925,-460.0,0.00019911,2]
[378723501,1754991052934,-1081.29,0.00019911,2]
[378723502,1754991052944,-837.88,0.00019911,2]
[378723503,1754991052953,-543.68,0.00019911,2]
[378723504,1754991052963,-460.0,0.00019911,2]
[378723505,1754991052973,-471.36,0.00019911,2]
[378723506,1754991052983,-460.0,0.00019911,2]
[378723507,1754991052993,-460.0,0.00019911,2]
[378723508,1754991053002,-2556.88,0.00019911,2]
[378723509,1754991053013,-1052.34,0.00019911,2]
[378723510,1754991053031,-1254.33,0.00019911,2]
[378723511,1754991053040,-6500.36,0.00019911,2]
[378723512,1754991053050,-666.3,0.00019911,2]
[378723513,1754991053062,-2750.1,0.00019911,2]
[378723514,1754991053071,-273.65319889,0.00019911,2]
[378723515,1754991053081,-3337.89,0.00019911,2]
[378723516,1754991053091,-2903.3,0.00019911,2]
[378723517,1754991053102,-1295.91,0.00019911,2]
[378723518,1754991053112,-460.0,0.00019911,2]
[378723519,1754991053122,-546.48,0.00019911,2]
[378723520,1754991053132,-460.0,0.00019911,2]
[378723521,1754991053142,-460.0,0.00019911,2]
[378723522,1754991053153,-1571.49,0.00019911,2]
[378723523,1754991053163,-1796.62,0.00019911,2]
[378723524,1754991053172,-460.0,0.00019911,2]
[378723525,1754991053183,-1439.14,0.00019911,2]
[378723526,1754991053193,-2098.01,0.00019911,2]
[378723527,1754991053203,-1013.91,0.00019911,2]
[378723528,1754991053213,-1129.8,0.00019911,2]
[378723529,1754991053225,-833.93,0.00019911,2]
[378723530,1754991053235,-460.0,0.00019912,2]
[378723531,1754991053245,-471.88,0.00019912,2]
[378723532,1754991053255,-1104.72,0.00019912,2]
[378723533,1754991053264,-460.0,0.00019912,2]
[378723534,1754991053274,-460.0,0.00019912,2]
[378723535,1754991053283,-460.0,0.00019912,2]
[378723536,1754991053293,-641.32,0.00019912,2]
[378723537,1754991053303,-460.0,0.00019912,2]
[378723538,1754991053313,-460.0,0.00019912,2]
[378723539,1754991053322,-460.0,0.00019912,2]
[378723540,1754991053331,-360.92725667,0.00019912,2]
[378723541,1754991053341,-460.0,0.00019912,2]
[378723542,1754991053351,-527.25,0.00019912,2]
[378723543,1754991053361,-1181.0,0.00019912,2]
[378723544,1754991053370,-488.61,0.00019912,2]
[378723545,1754991053380,-460.0,0.00019912,2]
[378723546,1754991053389,-1676.58,0.00019912,2]
[378723547,1754991053399,-460.0,0.00019912,2]
[378723548,1754991053408,-460.0,0.00019912,2]
[378723549,1754991053418,-460.0,0.00019912,2]
[378723550,1754991053428,-460.0,0.00019912,2]
[378723551,1754991053438,-460.0,0.00019912,2]
[378723552,1754991053448,-460.0,0.00019912,2]
[378723553,1754991053458,-151.0,0.00019912,2]
[378723554,1754991053468,-460.0,0.00019915,2]
[378723555,1754991053478,-460.0,0.00019915,2]
[378723556,1754991053488,-168.0,0.00019953,2]
[378723557,1754991053498,-1500.0,0.00019968,2]
[378723558,1754991053508,-920.60392595,0.00019968,2]
[378723559,1754991053518,-180.00633299,0.00019968,2]
[378723560,1754991053527,-2941.64078043,0.00019993,2]
[378723561,1754991053537,-4000.0,0.0002,4]
[378723562,1754991053547,-168.0,0.00020025,2]
[378723563,1754991053557,-168.0,0.00020031,2]
[378723564,1754991053567,-1214.58878929,0.00020031,2]
[378723565,1754991053576,-454.27289081,0.00020034,4]
[378723566,1754991053586,-150.0,0.00020038,2]
[378723567,1754991053596,-294.33572204,0.00020039,2]
[378723568,1754991053606,-500.0,0.00020041,2]
[378723569,1754991053616,-460.0,0.00020086,2]
[378723570,1754991053625,-460.0,0.00020086,2]
[378723571,1754991053635,-577.62,0.00020087,2]
[378723572,1754991053644,-2847.45,0.00020087,2]
[378723573,1754991053653,-476.6,0.00020087,2]
[378723574,1754991053663,-709.38,0.00020087,2]
[378723575,1754991053673,-1600.99,0.00020087,2]
[378723576,1754991053684,-938.74,0.00020087,2]
[378723577,1754991053694,-636.14,0.00020087,2]
[378723578,1754991053704,-920.34,0.00020087,2]
[378723579,1754991053713,-460.0,0.00020087,2]
[378723580,1754991053723,-597.04,0.00020087,2]
[378723581,1754991053733,-658.92,0.00020087,2]
[378723582,1754991053743,-460.0,0.00020087,2]
[378723583,1754991053753,-808.0,0.00020087,2]
[378723584,1754991053762,-1714.91,0.00020087,2]
[378723585,1754991053772,-919.35,0.00020087,2]
[378723586,1754991053782,-1201.48,0.00020087,2]
[378723587,1754991053792,-570.3,0.00020087,2]
[378723588,1754991053803,-193.39,0.00020087,2]
[378723589,1754991053813,-3031.66,0.00020087,2]
[378723590,1754991053824,-673.01,0.00020087,2]
[378723591,1754991053836,-580.87,0.00020087,2]
[378723592,1754991053851,-460.0,0.00020087,2]
[378723593,1754991053862,-635.1,0.00020087,2]
[378723594,1754991053873,-460.0,0.00020087,2]
[378723595,1754991053886,-168.0,0.000201,2]
[378723596,1754991053898,-151.0,0.00020143,2]
[378723597,1754991053910,-2200.0,0.00020146,2]
[378723598,1754991053920,-815.623,0.00020146,2]
[378723599,1754991053930,-460.0,0.00020177,2]
[378723600,1754991053940,-927.22,0.00020177,2]
[378723601,1754991053950,-460.0,0.00020177,2]
[378723602,1754991053960,-460.0,0.00020177,2]
[378723603,1754991054142,-460.0,0.00020177,2]
[378723604,1754991054154,-460.0,0.00020177,2]
[378723605,1754991054163,-481.59,0.00020177,2]
[378723606,1754991054173,-460.0,0.00020177,2]
[378723607,1754991054184,-460.0,0.00020177,2]
[378723608,1754991054194,-460.0,0.00020177,2]
[378723609,1754991054203,-460.0,0.00020177,2]
[378723610,1754991054212,-460.0,0.00020177,2]
[378723611,1754991054222,-472.14,0.00020177,2]
[378723612,1754991054232,-460.0,0.00020177,2]
[378723613,1754991054242,-460.0,0.00020177,2]
[378723614,1754991054251,-460.0,0.00020177,2]
[378723615,1754991054261,-460.0,0.00020177,2]
[378723616,1754991054270,-460.0,0.00020177,2]
[378723617,1754991054279,-460.0,0.00020177,2]
[378723618,1754991054289,-460.0,0.00020177,2]
[378723619,1754991054298,-460.0,0.00020177,2]
[378723620,1754991054307,-460.0,0.00020177,2]
[378723621,1754991054317,-460.0,0.00020177,2]
[378723622,1754991054327,-838.04,0.00020177,2]
[378723623,1754991054336,-460.0,0.00020185,2]
[378723624,1754991054346,-460.0,0.00020185,2]
[378723625,1754991054357,-460.0,0.00020185,2]
[378723626,1754991054366,-460.0,0.00020185,2]
[378723627,1754991054375,-460.0,0.00020185,2]
[378723628,1754991054384,-460.0,0.00020185,2]
[378723629,1754991054393,-705.76,0.00020185,2]
[378723630,1754991054402,-539.2,0.00020185,2]
[378723631,1754991054411,-460.0,0.00020185,2]
[378723632,1754991054421,-460.0,0.00020185,2]
[378723633,1754991054430,-553.78,0.00020185,2]
[378723634,1754991054439,-460.0,0.00020185,2]
[378723635,1754991054454,-460.0,0.00020185,2]
[378723636,1754991054463,-733.71,0.00020185,2]
[378723637,1754991054473,-460.0,0.00020185,2]
[378723638,1754991054482,-646.45,0.00020185,2]
[378723639,1754991054492,-460.0,0.00020185,2]
[378723640,1754991054501,-460.0,0.00020185,2]
[378723641,1754991054510,-460.0,0.00020185,2]
[378723642,1754991054520,-460.0,0.00020185,2]
[378723643,1754991054529,-2187.09,0.00020185,2]
[378723644,1754991054538,-929.85,0.00020185,2]
[378723645,1754991054548,-460.0,0.00020185,2]
[378723646,1754991054557,-1081.29,0.00020185,2]
[378723647,1754991054567,-837.88,0.00020185,2]
[378723648,1754991054576,-133.86605005,0.00020185,2]
[378723649,1754991054767,-460.0,0.00018442,2]
[378723650,1754991054778,-460.0,0.00018541,2]
[378723651,1754991054788,-460.0,0.00018716,2]
[378723652,1754991054797,-570.34,0.0001899,2]
[378723653,1754991054808,-409.81394995,0.00020185,2]
[378723654,1754991054818,-460.0,0.00020185,2]
[378723655,1754991054827,-471.36,0.00020185,2]
[378723656,1754991054836,-460.0,0.00020185,2]
[378723657,1754991054845,-460.0,0.00020185,2]
[378723658,1754991054855,-2556.88,0.00020185,2]
[378723659,1754991054864,-1052.34,0.00020185,2]
[378723660,1754991054874,-1254.33,0.00020185,2]
[378723661,1754991054883,-6500.36,0.00020185,2]
[378723662,1754991054893,-666.3,0.00020185,2]
[378723663,1754991054903,-2750.1,0.00020185,2]
[378723664,1754991054912,-3337.89,0.00020185,2]
[378723665,1754991054921,-2903.3,0.00020185,2]
[378723666,1754991054930,-1295.91,0.00020185,2]
[378723667,1754991054940,-460.0,0.00020185,2]
[378723668,1754991054949,-546.48,0.00020185,2]
[378723669,1754991054958,-460.0,0.00020185,2]
[378723670,1754991054967,-460.0,0.00020185,2]
[378723671,1754991054976,-1571.49,0.00020185,2]
[378723672,1754991054985,-1796.62,0.00020185,2]
[378723673,1754991054995,-460.0,0.00020185,2]
[378723674,1754991055005,-1439.14,0.00020185,2]
[378723675,1754991055014,-2098.01,0.00020185,2]
[378723676,1754991055023,-1013.91,0.00020185,2]
[378723677,1754991055032,-1129.8,0.00020185,2]
[378723678,1754991055042,-833.93,0.00020185,2]
[378723679,1754991055051,-460.0,0.00020186,2]
[378723680,1754991055060,-471.88,0.00020186,2]
[378723681,1754991055070,-1104.72,0.00020186,2]
[378723682,1754991055079,-472.87756567,0.00020186,2]
[378723683,1754991055088,-460.0,0.00020186,2]
[378723684,1754991055098,-460.0,0.00020186,2]
[378723685,1754991055107,-641.32,0.00020186,2]
[378723686,1754991055116,-460.0,0.00020186,2]
[378723687,1754991055126,-460.0,0.00020186,2]
[378723688,1754991055139,-460.0,0.00020186,2]
[378723689,1754991055148,-460.0,0.00020186,2]
[378723690,1754991055157,-527.25,0.00020186,2]
[378723691,1754991055166,-1181.0,0.00020186,2]
[378723692,1754991055176,-488.61,0.00020186,2]
[378723693,1754991055186,-460.0,0.00020186,2]
[378723694,1754991055196,-1676.58,0.00020186,2]
[378723695,1754991055205,-460.0,0.00020186,2]
[378723696,1754991055215,-460.0,0.00020186,2]
[378723697,1754991055226,-460.0,0.00020186,2]
[378723698,1754991055235,-460.0,0.00020186,2]
[378723699,1754991055244,-460.0,0.00020186,2]
[378723700,1754991055254,-460.0,0.00020186,2]
[378723701,1754991055263,-492.996762,0.00020187,2]
[378723702,1754991055272,-460.0,0.00020189,2]
[378723703,1754991055281,-460.0,0.00020189,2]
[378723704,1754991055290,-1680.0,0.00020209,2]
[378723705,1754991055299,-500.0,0.00020211,2]
[378723706,1754991055309,-500.0,0.00020211,2]
[378723707,1754991055319,-500.0,0.00020211,2]
[378723708,1754991055328,-501.34760076,0.00020211,2]
[378723709,1754991055338,-500.0,0.00020211,2]
[378723710,1754991055347,-621.67044864,0.00020211,2]
[378723711,1754991055357,-500.0,0.00020211,2]
[378723712,1754991055366,-500.0,0.00020211,2]
[378723713,1754991055375,-2000.0,0.00020216,2]
[378723714,1754991055385,-2000.0,0.00020216,2]
[378723715,1754991055394,-504.46428504,0.00020216,2]
[378723716,1754991055403,-2000.0,0.00020216,2]
[378723717,1754991055412,-283.06313399,0.00020223,4]
[378723718,1754991055422,-500.0,0.00020237,2]
[378723719,1754991055431,-500.0,0.00020237,2]
[378723720,1754991055441,-500.0,0.00020237,2]
[378723721,1754991055450,-500.0,0.00020237,2]
[378723722,1754991055460,-500.0,0.00020237,2]
[378723723,1754991055469,-500.0,0.00020237,2]
[378723724,1754991055478,-500.0,0.00020237,2]
[378723725,1754991055488,-500.0,0.00020237,2]
[378723726,1754991055498,-460.0,0.0002036,2]
[378723727,1754991055507,-460.0,0.0002036,2]
[378723728,1754991055517,-577.62,0.00020361,2]
[378723729,1754991055527,-2847.45,0.00020361,2]
[378723730,1754991055537,-476.6,0.00020361,2]
[378723731,1754991055546,-709.38,0.00020361,2]
[378723732,1754991055556,-1600.99,0.00020361,2]
[378723733,1754991055565,-938.74,0.00020361,2]
[378723734,1754991055575,-636.14,0.00020361,2]
[378723735,1754991055585,-920.34,0.00020361,2]
[378723736,1754991055595,-460.0,0.00020361,2]
[378723737,1754991055604,-658.92,0.00020361,2]
[378723738,1754991055613,-597.04,0.00020361,2]
[378723739,1754991055623,-460.0,0.00020361,2]
[378723740,1754991055632,-808.0,0.00020361,2]
[378723741,1754991055642,-1714.91,0.00020361,2]
[378723742,1754991055651,-919.35,0.00020361,2]
[378723743,1754991055660,-1201.48,0.00020361,2]
[378723744,1754991055670,-570.3,0.00020361,2]
[378723745,1754991055679,-3031.66,0.00020361,2]
[378723746,1754991055689,-673.01,0.00020361,2]
[378723747,1754991055698,-580.87,0.00020361,2]
[378723748,1754991055707,-460.0,0.00020361,2]
[378723749,1754991055716,-635.1,0.00020361,2]
[378723750,1754991055726,-460.0,0.00020361,2]
[378723751,1754991055735,-151.0,0.00020403,2]
[378723752,1754991055744,-460.0,0.00020451,2]
[378723753,1754991055753,-927.22,0.00020451,2]
[378723754,1754991055762,-460.0,0.00020451,2]
[378723755,1754991055771,-460.0,0.00020451,2]
[378723756,1754991055780,-460.0,0.00020451,2]
[378723757,1754991055789,-460.0,0.00020451,2]
[378723758,1754991055799,-481.59,0.00020451,2]
[378723759,1754991055808,-460.0,0.00020451,2]
[378723760,1754991055817,-460.0,0.00020451,2]
[378723761,1754991055827,-460.0,0.00020451,2]
[378723762,1754991055836,-460.0,0.00020451,2]
[378723763,1754991055846,-577.40324774,0.00020451,2]
[378723764,1754991055856,-472.14,0.00020451,2]
[378723765,1754991055865,-460.0,0.00020451,2]
[378723766,1754991055874,-460.0,0.00020451,2]
[378723767,1754991055883,-460.0,0.00020451,2]
[378723768,1754991055897,-460.0,0.00020451,2]
[378723769,1754991055906,-460.0,0.00020451,2]
[378723770,1754991055915,-460.0,0.00020451,2]
[378723771,1754991055924,-460.0,0.00020451,2]
[378723772,1754991055934,-460.0,0.00020451,2]
[378723773,1754991055943,-460.0,0.00020451,2]
[378723774,1754991055952,-460.0,0.00020451,2]
[378723775,1754991055961,-838.04,0.00020451,2]
[378723776,1754991055971,-460.0,0.00020459,2]
[378723777,1754991055980,-460.0,0.00020459,2]
[378723778,1754991055989,-284.85469363,0.00020459,2]
[378723779,1754991055998,-460.0,0.00020459,2]
[378723780,1754991056008,-460.0,0.00020459,2]
[378723781,1754991056018,-460.0,0.00020459,2]
[378723782,1754991056027,-705.76,0.00020459,2]
[378723783,1754991056037,-539.2,0.00020459,2]
[378723784,1754991056047,-460.0,0.00020459,2]
[378723785,1754991056058,-460.0,0.00020459,2]
[378723786,1754991056067,-553.78,0.00020459,2]
[378723787,1754991056076,-460.0,0.00020459,2]
[378723788,1754991056085,-460.0,0.00020459,2]
[378723789,1754991056095,-733.71,0.00020459,2]
[378723790,1754991056105,-460.0,0.00020459,2]
[378723791,1754991056114,-646.45,0.00020459,2]
[378723792,1754991056124,-460.0,0.00020459,2]
[378723793,1754991056133,-460.0,0.00020459,2]
[378723794,1754991056144,-460.0,0.00020459,2]
[378723795,1754991056154,-2187.09,0.00020459,2]
[378723796,1754991056163,-929.85,0.00020459,2]
[378723797,1754991056172,-460.0,0.00020459,2]
[378723798,1754991056181,-1064.46795459,0.00020459,2]
[378723799,1754991056195,-16.82204541,0.00020459,2]
[378723800,1754991056204,-784.76849306,0.00020459,2]
[378723801,1754991057942,-53.11150694,0.00020459,2]
[378723802,1754991057951,-543.68,0.00020459,2]
[378723803,1754991057960,-246.15254432,0.00020459,2]
[378723804,1754991070704,500.0,0.00010959,30]
[378723805,1754991071159,500.0,0.00010959,30]
[378723806,1754991071610,500.0,0.00010959,30]
[378723807,1754991072143,225.98462138,0.00010959,30]
[378723808,1754991182601,-334.35,0.00018333,3]
[378723809,1754991182622,-167.17,0.00018333,3]
[378723810,1754991182643,-478.14261227,0.00018342,2]
[378723811,1754991182663,-528.23687791,0.00018342,2]
[378723812,1754991182689,-47162.10050982,0.00018343,2]
[378723813,1754991274216,1898.35336448,0.00017441,2]
[378723814,1754991274238,3828.13000742,0.00017441,2]
[378723815,1754991285620,-501.56,0.00018333,3]
[378723816,1754991285643,-2206.23058534,0.00018342,2]
[378723817,1754991285665,-64774.20941466,0.00018343,2]
[378723818,1754991300555,1218.806718,0.0001749,2]
[378723819,1754991391885,-151.0,0.000183,2]
[378723820,1754991391907,-683.0,0.00018342,2]
[378723821,1754991465340,1708.34,0.00023,30]
[378723826,1754991628953,4953.06327458,0.00018,10]
[378723827,1754991628975,5046.93672542,0.00018,10]
[378723828,1754991637346,4953.06327458,0.00018,10]
[378723829,1754991637370,5046.93672542,0.00018,10]
[378723830,1754991645435,4953.06327458,0.00017393,2]
[378723831,1754991645458,10000.0,0.00017393,2]
[378723832,1754991645481,9946.93672542,0.00017393,2]
[378723833,1754991647037,53.06327458,0.00017393,2]
[378723834,1754991647058,7062.15571342,0.00017393,2]
[378723835,1754991649927,2937.84428658,0.00018,10]
[378723836,1754991649951,7062.15571342,0.00018,10]
[378723837,1754991652743,491.307431,0.00013699,2]
[378723839,1754991662213,2446.53685558,0.00018,10]
[378723840,1754991662234,7553.46314442,0.00018,10]
[378723841,1754991669722,2446.53685558,0.00018,10]
[378723842,1754991669744,7553.46314442,0.00018,10]
[378723843,1754991685169,2446.53685558,0.00018,10]
[378723844,1754991685192,7553.46314442,0.00018,10]
[378723845,1754991693573,2446.53685558,0.00018,10]
[378723846,1754991693595,7553.46314442,0.00018,10]
[378723847,1754991701498,2446.53685558,0.00018,10]
[378723848,1754991701519,7553.46314442,0.00018,10]
[378723849,1754991710929,953.25536136,0.00018231,2]
[378723850,1754991711267,1493.28149422,0.00018,10]
[378723851,1754991711288,8506.71850578,0.00018,10]
[378723852,1754991712852,192.237179,0.00017781,2]
[378723853,1754991713238,348.333768,0.00017782,2]
[378723854,1754991713560,265.187343,0.00017783,2]
[378723855,1754991713895,159.42582831,0.00017791,2]
[378723856,1754991719693,528.09737591,0.00018,10]
[378723857,1754991719726,9471.90262409,0.00018,10]
[378723858,1754991787364,528.09737591,0.00018241,2]
[378723859,1754991787388,1229.1450996,0.00018241,2]
[378723860,1754991827331,1930.45176219,0.00018233,2]
[378723861,1754992107583,2045.49877328,0.00018231,2]
[378723878,1754992232797,-1200.0,0.00018329,2]
[378723879,1754992232807,-160.0,0.0001833,2]
[378723880,1754992232816,-1200.0,0.0001833,2]
[378723881,1754992232825,-467.0178547,0.0001833,2]
[378723882,1754992232835,-470.96,0.0001833,2]
[378723883,1754992232844,-334.69982859,0.0001833,2]
[378723884,1754992232853,-329.41534545,0.0001833,2]
[378723885,1754992232862,-738.18,0.0001833,2]
[378723886,1754992232870,-946.42,0.0001833,2]
[378723887,1754992232879,-1956.63,0.0001833,2]
[378723888,1754992232889,-755.62,0.0001833,2]
[378723889,1754992232898,-3777.53,0.0001833,2]
[378723890,1754992232907,-460.0,0.0001833,2]
[378723893,1754992232916,-460.0,0.0001833,2]
[378723895,1754992232925,-460.0,0.0001833,2]
[378723897,1754992232934,-460.0,0.0001833,2]
[378723898,1754992232943,-460.0,0.0001833,2]
[378723899,1754992232952,-583.53,0.0001833,2]
[378723900,1754992232961,-460.0,0.0001833,2]
[378723901,1754992232970,-745.07,0.0001833,2]
[378723902,1754992232979,-460.0,0.0001833,2]
[378723903,1754992232988,-2219.18584686,0.0001833,2]
[378723904,1754992232999,-1079.30644084,0.0001833,2]
[378723905,1754992233011,-46701.5077123,0.0001833,2]
[378723906,1754992233020,-460.0,0.00018331,2]
[378723907,1754992233030,-494.98500153,0.00018331,2]
[378723908,1754992233039,-460.0,0.00018331,2]
[378723909,1754992233048,-460.0,0.00018331,2]
[378723910,1754992233057,-474.38,0.00018331,2]
[378723911,1754992233066,-460.0,0.00018331,2]
[378723912,1754992233075,-365.45277753,0.00018331,2]
[378723913,1754992233085,-460.0,0.00018331,2]
[378723914,1754992233094,-460.0,0.00018331,2]
[378723915,1754992233103,-463.64445252,0.00018331,2]
[378723916,1754992233112,-460.0,0.00018331,2]
[378723917,1754992233123,-460.0,0.00018331,2]
[378723918,1754992233133,-460.0,0.00018331,2]
[378723919,1754992233143,-460.0,0.00018331,2]
[378723920,1754992233153,-2138.77,0.00018331,2]
[378723921,1754992233162,-243.42877141,0.00018331,2]
[378723922,1754992233171,-460.0,0.00018331,2]
[378723923,1754992233181,-460.0,0.00018331,2]
[378723924,1754992233191,-460.0,0.00018331,2]
[378723925,1754992233201,-460.0,0.00018331,2]
[378723926,1754992233211,-460.0,0.00018331,2]
[378723927,1754992233220,-460.0,0.00018331,2]
[378723928,1754992233230,-460.0,0.00018331,2]
[378723929,1754992233240,-576.82,0.00018331,2]
[378723930,1754992233249,-460.0,0.00018331,2]
[378723931,1754992233259,-460.0,0.00018331,2]
[378723932,1754992233268,-460.0,0.00018331,2]
[378723933,1754992233278,-460.0,0.00018331,2]
[378723934,1754992233287,-460.0,0.00018331,2]
[378723935,1754992233297,-593.0,0.00018331,2]
[378723936,1754992233306,-460.0,0.00018331,2]
[378723937,1754992233316,-460.0,0.00018331,2]
[378723938,1754992233325,-1928.68,0.00018331,2]
[378723939,1754992233335,-460.0,0.00018331,2]
[378723940,1754992233344,-460.0,0.00018331,2]
[378723941,1754992233353,-251.00143846,0.00018331,2]
[378723942,1754992233363,-460.0,0.00018331,2]
[378723943,1754992233372,-460.0,0.00018331,2]